[Event "Skol-SM 2021, grupp B"]
[Site "Helsingborg Arena, Helsingborg, Sweden"]
[Date "2021.10.10"]
[Round "8.5"]
[White "Malmstrom, Asker"]
[Black "Harlin, Jacob"]
[Result "1/2-1/2"]
[TimeControl "45 minutes + 10 seconds per move from move one."]
[WhiteFideId "1741519"]
[BlackFideId "1728180"]
[WhiteElo "1434"]
[BlackElo "1346"]

1. d4 {[%clk 00:45:17]} {[%emt 00:00:02]} d5 {[%clk 00:45:13]} {[%emt
00:00:08]} 2. Bf4 {[%clk 00:45:25]} {[%emt 00:00:02]} Nf6 {[%clk 00:45:13]}
{[%emt 00:00:10]} 3. e3 {[%clk 00:45:33]} {[%emt 00:00:03]} Bf5 {[%clk
00:44:11]} {[%emt 00:01:13]} 4. Bd3 {[%clk 00:45:32]} {[%emt 00:00:10]} Bg6
{[%clk 00:44:08]} {[%emt 00:00:13]} 5. Nf3 {[%clk 00:45:34]} {[%emt 00:00:09]}
e6 {[%clk 00:43:57]} {[%emt 00:00:21]} 6. c3 {[%clk 00:45:22]} {[%emt
00:00:22]} c5 {[%clk 00:43:00]} {[%emt 00:01:07]} 7. Ne5 {[%clk 00:44:01]}
{[%emt 00:01:31]} c4 {[%clk 00:42:25]} {[%emt 00:00:44]} 8. Bxg6 {[%clk
00:43:51]} {[%emt 00:00:20]} hxg6 {[%clk 00:42:25]} {[%emt 00:00:10]} 9. Nd2
{[%clk 00:43:34]} {[%emt 00:00:27]} Be7 {[%clk 00:41:18]} {[%emt 00:01:16]} 10.
Ndf3 {[%emt 00:01:54]} O-O {[%clk 00:40:32]} {[%emt 00:00:01]} 11. Ng5 {[%clk
00:32:50]} {[%emt 00:10:06]} Nh5 {[%clk 00:39:21]} {[%emt 00:01:20]} 12. Ngxf7
{[%clk 00:31:04]} {[%emt 00:01:56]} Rxf7 {[%clk 00:39:22]} {[%emt 00:00:09]} 13.
Nxf7 {[%clk 00:31:11]} {[%emt 00:00:03]} Kxf7 {[%clk 00:39:31]} {[%emt
00:00:01]} 14. Qf3 {[%clk 00:27:15]} {[%emt 00:04:06]} Nf6 {[%clk 00:38:24]}
{[%emt 00:01:18]} 15. Be5 {[%clk 00:24:47]} {[%emt 00:02:38]} Nbd7 {[%clk
00:37:04]} {[%emt 00:01:30]} 16. g4 {[%clk 00:18:12]} {[%emt 00:06:45]} Kg8
{[%clk 00:36:17]} {[%emt 00:00:58]} 17. Bxf6 {[%clk 00:17:41]} {[%emt
00:00:41]} Nxf6 {[%clk 00:35:29]} {[%emt 00:00:58]} 18. Qe2 {[%clk 00:17:05]}
{[%emt 00:00:45]} Ne4 {[%clk 00:35:20]} {[%emt 00:00:20]} 19. f3 {[%clk
00:14:00]} {[%emt 00:03:15]} Bh4+ {[%clk 00:34:35]} {[%emt 00:00:55]} 20. Kf1
{[%clk 00:13:31]} {[%emt 00:00:39]} Nf2 {[%clk 00:32:55]} {[%emt 00:01:50]} 21.
Rg1 {[%clk 00:13:23]} {[%emt 00:00:18]} Nd3 {[%clk 00:33:00]} {[%emt 00:00:05]}
22. Kg2 {[%clk 00:11:37]} {[%emt 00:01:55]} Qb6 {[%clk 00:32:39]} {[%emt
00:00:32]} 23. f4 {[%clk 00:10:03]} {[%emt 00:01:44]} Be7 {[%clk 00:31:41]}
{[%emt 00:01:08]} 24. b4 {[%clk 00:09:27]} {[%emt 00:00:46]} Bd6 {[%clk
00:31:05]} {[%emt 00:00:46]} 25. Rgf1 {[%clk 00:08:50]} {[%emt 00:00:46]} Rf8
{[%clk 00:30:20]} {[%emt 00:00:56]} 26. Qd2 {[%clk 00:08:31]} {[%emt 00:00:28]}
Qd8 {[%clk 00:28:31]} {[%emt 00:01:59]} 27. g5 {[%clk 00:08:04]} {[%emt
00:00:38]} Kf7 {[%clk 00:27:26]} {[%emt 00:01:15]} 28. Rf3 {[%clk 00:06:24]}
{[%emt 00:01:49]} Rh8 {[%clk 00:25:44]} {[%emt 00:01:52]} 29. Rh3 {[%clk
00:05:27]} {[%emt 00:01:07]} Rxh3 {[%clk 00:25:15]} {[%emt 00:00:39]} 30. Kxh3
{[%clk 00:05:36]} {[%emt 00:00:01]} Qh8+ {[%clk 00:23:24]} {[%emt 00:02:02]} 31.
Kg3 {[%clk 00:05:45]} {[%emt 00:00:01]} Qh5 {[%clk 00:23:22]} {[%emt 00:00:12]}
32. h4 {[%clk 00:05:24]} {[%emt 00:00:30]} b5 {[%clk 00:22:34]} {[%emt
00:00:58]} 33. a4 {[%clk 00:05:11]} {[%emt 00:00:23]} Bc7 {[%clk 00:21:57]}
{[%emt 00:00:48]} 34. axb5 {[%clk 00:05:03]} {[%emt 00:00:19]} Bb6 {[%clk
00:22:06]} 35. Ra2 {[%clk 00:04:48]} {[%emt 00:00:24]} Qh8 {[%clk 00:22:09]}
{[%emt 00:00:07]} 36. Ra6 {[%clk 00:04:43]} {[%emt 00:00:16]} Qe8 {[%clk
00:21:45]} {[%emt 00:00:34]} 37. Ra1 {[%clk 00:03:19]} {[%emt 00:01:33]} Qxb5
{[%clk 00:20:43]} {[%emt 00:01:13]} 38. Qe2 {[%clk 00:03:27]} {[%emt 00:00:01]}
Ke7 {[%clk 00:14:56]} {[%emt 00:05:57]} 39. h5 {[%clk 00:03:15]} {[%emt
00:00:22]} gxh5 {[%clk 00:15:04]} {[%emt 00:00:03]} 40. Qxh5 {[%clk 00:03:22]}
{[%emt 00:00:03]} Qe8 {[%clk 00:15:13]} 41. g6 {[%clk 00:02:57]} {[%emt
00:00:35]} Qf8 {[%clk 00:13:03]} {[%emt 00:02:19]} 42. Rh1 {[%clk 00:02:19]}
{[%emt 00:00:48]} Nb2 {[%clk 00:10:55]} {[%emt 00:02:19]} 43. Qg5+ {[%clk
00:01:44]} {[%emt 00:00:45]} Kd7 {[%clk 00:09:30]} {[%emt 00:01:34]} 44. Rh7
{[%clk 00:01:41]} {[%emt 00:00:12]} Bd8 {[%clk 00:09:22]} {[%emt 00:00:19]} 45.
Qh5 {[%clk 00:01:24]} {[%emt 00:00:27]} Na4 {[%clk 00:06:26]} {[%emt 00:03:07]}
46. Rh8 {[%clk 00:01:16]} {[%emt 00:00:18]} Qe7 {[%clk 00:03:45]} {[%emt
00:02:52]} 47. Rh7 {[%clk 00:01:10]} {[%emt 00:00:15]} Nxc3 {[%clk 00:03:49]}
{[%emt 00:00:07]} 48. Qe5 {[%clk 00:01:05]} {[%emt 00:00:15]} Ne4+ {[%clk
00:03:27]} {[%emt 00:00:32]} 49. Kf3 {[%clk 00:00:59]} {[%emt 00:00:15]} Nf6
{[%clk 00:03:25]} {[%emt 00:00:12]} 50. Rh2 {[%clk 00:01:03]} {[%emt 00:00:06]}
Qxb4 {[%clk 00:03:06]} {[%emt 00:00:30]} 51. f5 {[%clk 00:00:56]} {[%emt
00:00:17]} Qd6 {[%clk 00:02:42]} {[%emt 00:00:34]} 52. fxe6+ {[%clk 00:00:37]}
{[%emt 00:00:28]} Qxe6 {[%clk 00:02:46]} {[%emt 00:00:06]} 53. Ra2 {[%clk
00:00:32]} {[%emt 00:00:15]} Qg4+ {[%clk 00:02:20]} {[%emt 00:00:36]} 54. Kf2
{[%clk 00:00:33]} {[%emt 00:00:09]} Ne4+ {[%clk 00:02:19]} {[%emt 00:00:12]} 55.
Ke1 {[%clk 00:00:37]} {[%emt 00:00:06]} Qg1+ {[%clk 00:01:39]} {[%emt
00:00:50]} 56. Ke2 {[%clk 00:00:39]} {[%emt 00:00:07]} Nc3+ {[%clk 00:01:35]}
{[%emt 00:00:15]} 57. Kf3 {[%clk 00:00:43]} {[%emt 00:00:06]} Nxa2 {[%clk
00:01:40]} {[%emt 00:00:05]} 58. Qxd5+ {[%clk 00:00:50]} {[%emt 00:00:02]} Ke7
{[%clk 00:00:52]} {[%emt 00:00:58]} 59. Qe5+ {[%clk 00:00:57]} {[%emt
00:00:03]} Kd7 {[%clk 00:00:58]} {[%emt 00:00:04]} 60. Qd5+ {[%clk 00:01:04]}
{[%emt 00:00:03]} Kc7 {[%clk 00:01:01]} {[%emt 00:00:06]} 61. Qc5+ {[%clk
00:01:12]} {[%emt 00:00:02]} Kb7 {[%clk 00:01:08]} {[%emt 00:00:04]} 62. Qb5+
{[%clk 00:01:16]} {[%emt 00:00:05]} Bb6 {[%clk 00:00:56]} {[%emt 00:00:22]} 63.
Qd7+ {[%clk 00:01:20]} {[%emt 00:00:06]} Bc7 {[%clk 00:00:52]} {[%emt
00:00:15]} 64. Qb5+ {[%clk 00:01:26]} {[%emt 00:00:03]} Bb6 {[%clk 00:00:31]}
{[%emt 00:00:31]} 65. Qd7+ {[%clk 00:01:35]} {[%emt 00:00:01]} Kb8 {[%clk
00:00:37]} {[%emt 00:00:04]} 66. Qe8+ {[%clk 00:01:37]} {[%emt 00:00:08]} Kc7
{[%clk 00:00:45]} {[%emt 00:00:02]} 67. Qe7+ {[%clk 00:01:42]} {[%emt
00:00:04]} Kc6 {[%clk 00:00:46]} {[%emt 00:00:09]} 68. Qe8+ {[%clk 00:01:49]}
{[%emt 00:00:03]} Kd6 {[%clk 00:00:44]} {[%emt 00:00:12]} 69. Qf8+ {[%clk
00:01:49]} {[%emt 00:00:10]} Ke6 {[%clk 00:00:33]} {[%emt 00:00:22]} 70. Qf7+
{[%clk 00:01:53]} {[%emt 00:00:06]} Kd6 {[%clk 00:00:35]} {[%emt 00:00:08]} 71.
Qf8+ {[%clk 00:01:59]} {[%emt 00:00:04]} Kc6 {[%clk 00:00:36]} {[%emt
00:00:09]} 72. Qe8+ {[%clk 00:02:07]} {[%emt 00:00:01]} Kb7 {[%clk 00:00:43]}
{[%emt 00:00:04]} 73. Qd7+ {[%clk 00:02:13]} {[%emt 00:00:04]} Bc7 {[%clk
00:00:51]} {[%emt 00:00:03]} 74. Qb5+ {[%clk 00:02:17]} {[%emt 00:00:06]} Bb6
{[%clk 00:00:24]} {[%emt 00:00:37]} 75. Qd7+ {[%clk 00:02:24]} {[%emt
00:00:02]} Kb8 {[%clk 00:00:23]} {[%emt 00:00:12]} 76. Qe8+ {[%clk 00:02:27]}
{[%emt 00:00:06]} Kc7 {[%clk 00:00:29]} {[%emt 00:00:04]} 77. Qe7+ {[%clk
00:02:31]} {[%emt 00:00:06]} Kc6 {[%clk 00:00:36]} {[%emt 00:00:04]} 78. Qe8+
{[%clk 00:02:40]} {[%emt 00:00:01]} Kd6 {[%clk 00:00:35]} {[%emt 00:00:11]} 79.
Qe5+ {[%clk 00:02:41]} {[%emt 00:00:09]} Kd7 {[%clk 00:00:36]} {[%emt
00:00:09]} 80. Qb5+ {[%clk 00:02:07]} {[%emt 00:00:43]} Ke7 {[%clk 00:00:28]}
{[%emt 00:00:18]} 81. Qe5+ {[%clk 00:02:13]} {[%emt 00:00:04]} Kf8 {[%clk
00:00:25]} {[%emt 00:00:14]} 82. Qd6+ {[%clk 00:02:09]} {[%emt 00:00:14]} Ke8
{[%clk 00:00:31]} {[%emt 00:00:04]} 83. Qe6+ {[%clk 00:02:14]} {[%emt
00:00:04]} Kd8 {[%clk 00:00:33]} {[%emt 00:00:07]} 1/2-1/2